[Event "Titled Tuesday Blitz December 06 Early 2022"]
[White "Ray, Sarathi"]
[Black "Szyszylo, Rafal"]
[WhiteFideId "2032490"]
[BlackFideId "1109626"]
[WhiteElo "2029"]
[BlackElo "1981"]
[Result "0-1"]
[Round "06"]
[TimeControl "180+1"]
[Date "2022.12.07"]
[WhiteClock "0:00:07"]
[BlackClock "0:00:11"]

1. e4 {[%clk 0:02:13]}  d6 {[%clk 0:02:59]} 2. Nc3 {[%clk 0:02:12]}  Nf6 {[%clk 0:02:56]} 3. Bc4 {[%clk 0:02:10]}  c6 {[%clk 0:02:54]} 4. d3 {[%clk 0:02:08]}  Nbd7 {[%clk 0:02:53]} 5. f4 {[%clk 0:02:08]}  e5 {[%clk 0:02:52]} 6. Nf3 {[%clk 0:02:08]}  h6 {[%clk 0:02:49]} 7. O-O {[%clk 0:02:07]}  Qb6+ {[%clk 0:02:44]} 8. Kh1 {[%clk 0:02:03]}  Be7 {[%clk 0:02:43]} 9. Qe1 {[%clk 0:01:41]}  O-O {[%clk 0:01:59]} 10. Bb3 {[%clk 0:01:41]}  Nc5 {[%clk 0:01:53]} 11. fxe5 {[%clk 0:01:40]}  dxe5 {[%clk 0:01:52]} 12. Nxe5 {[%clk 0:01:40]}  Nxb3 {[%clk 0:01:52]} 13. axb3 {[%clk 0:01:40]}  Be6 {[%clk 0:01:43]} 14. Nf3 {[%clk 0:01:32]}  Ng4 {[%clk 0:01:38]} 15. h3 {[%clk 0:01:27]}  Nf6 {[%clk 0:01:37]} 16. Be3 {[%clk 0:01:26]}  Qc7 {[%clk 0:01:37]} 17. Bf2 {[%clk 0:01:16]}  Nh5 {[%clk 0:01:35]} 18. Nd4 {[%clk 0:01:09]}  Bd6 {[%clk 0:01:23]} 19. g4 {[%clk 0:00:51]}  Nf4 {[%clk 0:01:17]} 20. Nf5 {[%clk 0:00:38]}  Bxf5 {[%clk 0:01:14]} 21. gxf5 {[%clk 0:00:36]}  Nxh3 {[%clk 0:01:13]} 22. Be3 {[%clk 0:00:36]}  Bg3 {[%clk 0:01:06]} 23. Qe2 {[%clk 0:00:33]}  Ng5 {[%clk 0:00:59]} 24. Bxg5 {[%clk 0:00:25]}  hxg5 {[%clk 0:00:59]} 25. Qg4 {[%clk 0:00:23]}  f6 {[%clk 0:00:53]} 26. Kg2 {[%clk 0:00:20]}  Be5 {[%clk 0:00:43]} 27. Qh5 {[%clk 0:00:20]}  Qf7 {[%clk 0:00:42]} 28. Qg4 {[%clk 0:00:20]}  Qd7 {[%clk 0:00:31]} 29. Rh1 {[%clk 0:00:20]}  Kf7 {[%clk 0:00:31]} 30. Qh5+ {[%clk 0:00:19]}  Ke7 {[%clk 0:00:30]} 31. Qg6 {[%clk 0:00:20]}  Rg8 {[%clk 0:00:28]} 32. Rh7 {[%clk 0:00:18]}  Kf8 {[%clk 0:00:27]} 33. Rah1 {[%clk 0:00:17]}  Qf7 {[%clk 0:00:27]} 34. Rh8 {[%clk 0:00:15]}  Qxg6 {[%clk 0:00:24]} 35. fxg6 {[%clk 0:00:15]}  Bxc3 {[%clk 0:00:24]} 36. bxc3 {[%clk 0:00:14]}  Ke7 {[%clk 0:00:23]} 37. Rxg8 {[%clk 0:00:14]}  Rxg8 {[%clk 0:00:24]} 38. Rh7 {[%clk 0:00:14]}  f5 {[%clk 0:00:22]} 39. exf5 {[%clk 0:00:14]}  Kf6 {[%clk 0:00:23]} 40. Kf3 {[%clk 0:00:14]}  Kxf5 {[%clk 0:00:23]} 41. Rh1 {[%clk 0:00:12]}  Re8 {[%clk 0:00:20]} 42. Ra1 {[%clk 0:00:13]}  a6 {[%clk 0:00:20]} 43. Ra5+ {[%clk 0:00:13]}  Kxg6 {[%clk 0:00:20]} 44. b4 {[%clk 0:00:11]}  Kf6 {[%clk 0:00:19]} 45. c4 {[%clk 0:00:12]}  Re5 {[%clk 0:00:17]} 46. b5 {[%clk 0:00:12]}  cxb5 {[%clk 0:00:17]} 47. cxb5 {[%clk 0:00:13]}  Rxb5 {[%clk 0:00:17]} 48. Ra4 {[%clk 0:00:13]}  Rc5 {[%clk 0:00:16]} 49. Rb4 {[%clk 0:00:13]}  b5 {[%clk 0:00:15]} 50. c4 {[%clk 0:00:13]}  bxc4 {[%clk 0:00:14]} 51. dxc4 {[%clk 0:00:13]}  Kf5 {[%clk 0:00:13]} 52. Ra4 {[%clk 0:00:14]}  a5 {[%clk 0:00:13]} 53. Ra3 {[%clk 0:00:14]}  g4+ {[%clk 0:00:13]} 54. Kg3 {[%clk 0:00:13]}  g5 {[%clk 0:00:10]} 55. Rd3 {[%clk 0:00:12]}  a4 {[%clk 0:00:09]} 56. Rd8 {[%clk 0:00:10]}  Rxc4 {[%clk 0:00:09]} 57. Rf8+ {[%clk 0:00:09]}  Ke5 {[%clk 0:00:09]} 58. Re8+ {[%clk 0:00:09]}  Kd5 {[%clk 0:00:09]} 59. Rd8+ {[%clk 0:00:10]}  Kc5 {[%clk 0:00:09]} 60. Rc8+ {[%clk 0:00:10]}  Kb4 {[%clk 0:00:09]} 61. Rb8+ {[%clk 0:00:09]}  Kc3 {[%clk 0:00:09]} 62. Ra8 {[%clk 0:00:08]}  Kb3 {[%clk 0:00:09]} 63. Rb8+ {[%clk 0:00:08]}  Rb4 {[%clk 0:00:10]} 64. Ra8 {[%clk 0:00:06]}  a3 {[%clk 0:00:10]} 65. Kg2 {[%clk 0:00:06]}  a2 {[%clk 0:00:10]} 66. Kg3 {[%clk 0:00:07]}  Kb2 {[%clk 0:00:11]} 67. Kg2 {[%clk 0:00:07]}  a1=Q {[%clk 0:00:11]} 0-1


[Site "https://www.chess.com"]

[Event "Titled Tuesday Blitz December 06 Early 2022"]
[White "Riehle, Marco"]
[Black "Berezin, Viktor"]
[WhiteFideId "12904392"]
[BlackFideId "14107872"]
[WhiteElo "2462"]
[BlackElo "2310"]
[Result "1-0"]
[Round "06"]
[TimeControl "180+1"]
[Date "2022.12.07"]
[WhiteClock "0:01:53"]
[BlackClock "0:00:19"]

1. e4 {[%clk 0:03:00]}  c6 {[%clk 0:02:58]} 2. c4 {[%clk 0:03:00]}  d5 {[%clk 0:02:58]} 3. cxd5 {[%clk 0:03:01]}  cxd5 {[%clk 0:02:58]} 4. exd5 {[%clk 0:03:02]}  Nf6 {[%clk 0:02:58]} 5. Nc3 {[%clk 0:03:03]}  Nxd5 {[%clk 0:02:55]} 6. Nf3 {[%clk 0:03:03]}  Nc6 {[%clk 0:02:54]} 7. Bb5 {[%clk 0:03:02]}  Nxc3 {[%clk 0:02:48]} 8. dxc3 {[%clk 0:03:00]}  Qxd1+ {[%clk 0:02:43]} 9. Kxd1 {[%clk 0:03:01]}  Bg4 {[%clk 0:02:42]} 10. Ke2 {[%clk 0:02:59]}  Bxf3+ {[%clk 0:02:40]} 11. Kxf3 {[%clk 0:02:58]}  O-O-O {[%clk 0:02:40]} 12. Bxc6 {[%clk 0:02:56]}  bxc6 {[%clk 0:02:41]} 13. Be3 {[%clk 0:02:56]}  e5 {[%clk 0:02:24]} 14. Bxa7 {[%clk 0:02:54]}  c5 {[%clk 0:02:18]} 15. b4 {[%clk 0:02:46]}  Kb7 {[%clk 0:02:14]} 16. Bxc5 {[%clk 0:02:45]}  Bxc5 {[%clk 0:02:14]} 17. bxc5 {[%clk 0:02:46]}  Kc6 {[%clk 0:02:15]} 18. Ke4 {[%clk 0:02:41]}  f5+ {[%clk 0:01:55]} 19. Kxe5 {[%clk 0:02:37]}  Rhe8+ {[%clk 0:01:54]} 20. Kf4 {[%clk 0:02:34]}  Rd2 {[%clk 0:01:54]} 21. Rhf1 {[%clk 0:02:26]}  Ree2 {[%clk 0:01:52]} 22. Kf3 {[%clk 0:02:25]}  Rxa2 {[%clk 0:01:52]} 23. Rxa2 {[%clk 0:02:25]}  Rxa2 {[%clk 0:01:53]} 24. Re1 {[%clk 0:02:25]}  Ra7 {[%clk 0:01:48]} 25. Re5 {[%clk 0:02:23]}  g6 {[%clk 0:01:47]} 26. h4 {[%clk 0:02:23]}  Ra3 {[%clk 0:01:42]} 27. Re7 {[%clk 0:02:23]}  Rxc3+ {[%clk 0:01:42]} 28. Kf4 {[%clk 0:02:24]}  Rc4+ {[%clk 0:01:40]} 29. Kg3 {[%clk 0:02:23]}  Rg4+ {[%clk 0:00:59]} 30. Kh3 {[%clk 0:02:22]}  Kxc5 {[%clk 0:00:51]} 31. Rxh7 {[%clk 0:02:22]}  Kd5 {[%clk 0:00:49]} 32. f3 {[%clk 0:02:12]}  Ra4 {[%clk 0:00:48]} 33. Rh6 {[%clk 0:02:11]}  Ke5 {[%clk 0:00:34]} 34. Rxg6 {[%clk 0:02:09]}  Ra1 {[%clk 0:00:30]} 35. Kh2 {[%clk 0:02:04]}  Kf4 {[%clk 0:00:29]} 36. Rb6 {[%clk 0:02:03]}  Ra7 {[%clk 0:00:26]} 37. Rb3 {[%clk 0:02:01]}  Ke5 {[%clk 0:00:23]} 38. g3 {[%clk 0:01:59]}  f4 {[%clk 0:00:20]} 39. g4 {[%clk 0:01:57]}  Ra2+ {[%clk 0:00:18]} 40. Kh3 {[%clk 0:01:57]}  Ra1 {[%clk 0:00:18]} 41. g5 {[%clk 0:01:58]}  Kd4 {[%clk 0:00:17]} 42. Kg4 {[%clk 0:01:57]}  Ke5 {[%clk 0:00:18]} 43. Rb5+ {[%clk 0:01:56]}  Ke6 {[%clk 0:00:17]} 44. Kxf4 {[%clk 0:01:57]}  Ra4+ {[%clk 0:00:18]} 45. Kg3 {[%clk 0:01:57]}  Kf7 {[%clk 0:00:17]} 46. f4 {[%clk 0:01:57]}  Kg6 {[%clk 0:00:18]} 47. Kg4 {[%clk 0:01:56]}  Ra1 {[%clk 0:00:18]} 48. Rb6+ {[%clk 0:01:55]}  Kg7 {[%clk 0:00:19]} 49. Rb7+ {[%clk 0:01:56]}  Kg6 {[%clk 0:00:19]} 50. h5# {[%clk 0:01:53]} 1-0


[Site "https://www.chess.com"]

[Event "Titled Tuesday Blitz December 06 Early 2022"]
[White "Samaganova, Aleksandra"]
[Black "Buksa, Nataliya"]
[WhiteFideId "13800221"]
[BlackFideId "14123622"]
[WhiteElo "1864"]
[BlackElo "2303"]
[Result "1/2-1/2"]
[Round "06"]
[TimeControl "180+1"]
[Date "2022.12.07"]
[WhiteClock "0:00:45"]
[BlackClock "0:01:17"]

1. c4 {[%clk 0:03:00]}  e6 {[%clk 0:02:59]} 2. Nc3 {[%clk 0:02:47]}  d5 {[%clk 0:03:00]} 3. e3 {[%clk 0:02:45]}  Nf6 {[%clk 0:02:59]} 4. Nf3 {[%clk 0:02:45]}  c5 {[%clk 0:02:58]} 5. d4 {[%clk 0:02:45]}  cxd4 {[%clk 0:02:55]} 6. exd4 {[%clk 0:02:44]}  Be7 {[%clk 0:02:55]} 7. cxd5 {[%clk 0:02:43]}  Nxd5 {[%clk 0:02:55]} 8. Bd3 {[%clk 0:02:44]}  O-O {[%clk 0:02:53]} 9. O-O {[%clk 0:02:44]}  Nc6 {[%clk 0:02:53]} 10. a3 {[%clk 0:02:39]}  h6 {[%clk 0:02:54]} 11. Bc2 {[%clk 0:02:39]}  Bd6 {[%clk 0:02:37]} 12. Qd3 {[%clk 0:02:35]}  f5 {[%clk 0:02:38]} 13. Re1 {[%clk 0:02:34]}  Qf6 {[%clk 0:02:36]} 14. Bb3 {[%clk 0:02:23]}  Nce7 {[%clk 0:02:31]} 15. Ne5 {[%clk 0:02:14]}  a6 {[%clk 0:02:17]} 16. Bd2 {[%clk 0:01:52]}  Rd8 {[%clk 0:02:17]} 17. Rac1 {[%clk 0:01:49]}  Nxc3 {[%clk 0:02:11]} 18. Qxc3 {[%clk 0:01:42]}  Nd5 {[%clk 0:02:06]} 19. Bxd5 {[%clk 0:01:34]}  exd5 {[%clk 0:02:07]} 20. Qb3 {[%clk 0:01:22]}  Bf8 {[%clk 0:02:05]} 21. Rc7 {[%clk 0:01:17]}  Bd6 {[%clk 0:01:34]} 22. Rcc1 {[%clk 0:00:48]}  Bf8 {[%clk 0:01:32]} 23. Rc7 {[%clk 0:00:46]}  Bd6 {[%clk 0:01:17]} 24. Rcc1 {[%clk 0:00:45]} 1/2-1/2


[Site "https://www.chess.com"]

[Event "Titled Tuesday Blitz December 06 Early 2022"]
[White "Sanchez, Robert"]
[Black "Shuvalov, Evgenij"]
[WhiteFideId "2034360"]
[BlackFideId "4187237"]
[WhiteElo "2346"]
[BlackElo "2049"]
[Result "0-1"]
[Round "06"]
[TimeControl "180+1"]
[Date "2022.12.07"]
[WhiteClock "0:00:48"]
[BlackClock "0:00:45"]

1. Nf3 {[%clk 0:03:00]}  Nf6 {[%clk 0:02:59]} 2. e3 {[%clk 0:03:01]}  d5 {[%clk 0:02:57]} 3. c4 {[%clk 0:03:00]}  c6 {[%clk 0:02:56]} 4. Nc3 {[%clk 0:02:58]}  a6 {[%clk 0:02:56]} 5. b3 {[%clk 0:02:57]}  Bf5 {[%clk 0:02:55]} 6. d4 {[%clk 0:02:54]}  e6 {[%clk 0:02:55]} 7. Be2 {[%clk 0:02:54]}  h6 {[%clk 0:02:55]} 8. O-O {[%clk 0:02:54]}  Nbd7 {[%clk 0:02:55]} 9. h3 {[%clk 0:02:55]}  Bd6 {[%clk 0:02:53]} 10. Bb2 {[%clk 0:02:54]}  Qe7 {[%clk 0:02:53]} 11. a4 {[%clk 0:02:53]}  O-O {[%clk 0:02:51]} 12. Re1 {[%clk 0:02:54]}  Bb4 {[%clk 0:02:50]} 13. Rf1 {[%clk 0:02:49]}  Ne4 {[%clk 0:02:48]} 14. Nxe4 {[%clk 0:02:47]}  Bxe4 {[%clk 0:02:49]} 15. Nd2 {[%clk 0:02:47]}  Bg6 {[%clk 0:02:47]} 16. c5 {[%clk 0:02:37]}  e5 {[%clk 0:02:40]} 17. Nf3 {[%clk 0:02:36]}  Be4 {[%clk 0:02:26]} 18. Nxe5 {[%clk 0:02:24]}  Nxe5 {[%clk 0:02:26]} 19. dxe5 {[%clk 0:02:25]}  Bxc5 {[%clk 0:02:26]} 20. Rc1 {[%clk 0:02:23]}  Rad8 {[%clk 0:02:19]} 21. Bd4 {[%clk 0:02:21]}  Ba3 {[%clk 0:02:15]} 22. Ra1 {[%clk 0:02:18]}  Bb4 {[%clk 0:02:15]} 23. f4 {[%clk 0:02:15]}  c5 {[%clk 0:02:05]} 24. Bb2 {[%clk 0:02:15]}  d4 {[%clk 0:02:05]} 25. exd4 {[%clk 0:02:11]}  cxd4 {[%clk 0:02:04]} 26. Bd3 {[%clk 0:02:09]}  Bc6 {[%clk 0:01:47]} 27. Qg4 {[%clk 0:01:57]}  Qe6 {[%clk 0:01:38]} 28. Qg3 {[%clk 0:01:53]}  f5 {[%clk 0:01:28]} 29. Rac1 {[%clk 0:01:36]}  Kh8 {[%clk 0:01:26]} 30. Bc4 {[%clk 0:01:27]}  Qe7 {[%clk 0:01:24]} 31. Rcd1 {[%clk 0:01:20]}  b5 {[%clk 0:01:22]} 32. axb5 {[%clk 0:01:18]}  axb5 {[%clk 0:01:22]} 33. Bd3 {[%clk 0:01:16]}  Rg8 {[%clk 0:01:18]} 34. Bxf5 {[%clk 0:01:14]}  g5 {[%clk 0:01:18]} 35. Rf2 {[%clk 0:01:02]}  Rdf8 {[%clk 0:01:12]} 36. Bd3 {[%clk 0:00:54]}  gxf4 {[%clk 0:01:11]} 37. Qh2 {[%clk 0:00:53]}  Bc3 {[%clk 0:01:09]} 38. Bc1 {[%clk 0:00:52]}  Qxe5 {[%clk 0:01:09]} 39. Rdf1 {[%clk 0:00:52]}  Be1 {[%clk 0:00:53]} 40. Re2 {[%clk 0:00:50]}  Qxe2 {[%clk 0:00:50]} 41. Bxe2 {[%clk 0:00:50]}  Bg3 {[%clk 0:00:51]} 42. Qxg3 {[%clk 0:00:48]}  fxg3 {[%clk 0:00:49]} 43. Bxh6 {[%clk 0:00:48]}  Rxf1+ {[%clk 0:00:48]} 44. Bxf1 {[%clk 0:00:49]}  Be4 {[%clk 0:00:45]} 45. Bf4 {[%clk 0:00:49]}  d3 {[%clk 0:00:45]} 46. Be5+ {[%clk 0:00:48]}  Kh7 {[%clk 0:00:45]} 0-1


[Site "https://www.chess.com"]

[Event "Titled Tuesday Blitz December 06 Early 2022"]
[White "Shubenkova, Veronika"]
[Black "Goroshkov, Maksym"]
[WhiteFideId "44124040"]
[BlackFideId "14142716"]
[WhiteElo "2027"]
[BlackElo "2258"]
[Result "0-1"]
[Round "06"]
[TimeControl "180+1"]
[Date "2022.12.07"]
[WhiteClock "0:00:02"]
[BlackClock "0:00:11"]

1. e4 {[%clk 0:03:00]}  e5 {[%clk 0:02:59]} 2. Nf3 {[%clk 0:03:00]}  d6 {[%clk 0:02:59]} 3. d4 {[%clk 0:02:59]}  Bg4 {[%clk 0:02:59]} 4. Be2 {[%clk 0:02:59]}  Nd7 {[%clk 0:02:57]} 5. O-O {[%clk 0:02:59]}  Ngf6 {[%clk 0:02:55]} 6. Nc3 {[%clk 0:02:53]}  Be7 {[%clk 0:02:53]} 7. Be3 {[%clk 0:02:47]}  O-O {[%clk 0:02:52]} 8. Re1 {[%clk 0:02:39]}  c6 {[%clk 0:02:48]} 9. h3 {[%clk 0:02:38]}  Bh5 {[%clk 0:02:42]} 10. Nd2 {[%clk 0:02:36]}  Bxe2 {[%clk 0:02:37]} 11. Qxe2 {[%clk 0:02:36]}  Qc7 {[%clk 0:02:37]} 12. Rad1 {[%clk 0:02:33]}  Rfd8 {[%clk 0:02:28]} 13. Nf3 {[%clk 0:02:30]}  Nf8 {[%clk 0:02:26]} 14. Rd2 {[%clk 0:02:23]}  Ne6 {[%clk 0:02:23]} 15. Red1 {[%clk 0:02:22]}  c5 {[%clk 0:02:18]} 16. dxe5 {[%clk 0:02:13]}  dxe5 {[%clk 0:02:19]} 17. Nd5 {[%clk 0:02:12]}  Nxd5 {[%clk 0:02:16]} 18. exd5 {[%clk 0:02:10]}  Nd4 {[%clk 0:02:15]} 19. Bxd4 {[%clk 0:02:06]}  exd4 {[%clk 0:02:15]} 20. Re1 {[%clk 0:01:58]}  Bf6 {[%clk 0:02:06]} 21. Qe4 {[%clk 0:01:47]}  h6 {[%clk 0:02:04]} 22. Rd3 {[%clk 0:01:40]}  b5 {[%clk 0:01:51]} 23. b3 {[%clk 0:01:34]}  Qd6 {[%clk 0:01:42]} 24. Qf5 {[%clk 0:01:25]}  g6 {[%clk 0:01:34]} 25. Qg4 {[%clk 0:01:19]}  h5 {[%clk 0:01:30]} 26. Qe4 {[%clk 0:01:06]}  Qxd5 {[%clk 0:01:29]} 27. Qxd5 {[%clk 0:01:04]}  Rxd5 {[%clk 0:01:29]} 28. c4 {[%clk 0:01:03]}  bxc4 {[%clk 0:01:27]} 29. bxc4 {[%clk 0:01:03]}  Rd6 {[%clk 0:01:28]} 30. Nd2 {[%clk 0:00:58]}  Kg7 {[%clk 0:01:22]} 31. Ne4 {[%clk 0:00:58]}  Re6 {[%clk 0:01:20]} 32. f3 {[%clk 0:00:56]}  Rb8 {[%clk 0:01:19]} 33. Red1 {[%clk 0:00:51]}  Be7 {[%clk 0:01:18]} 34. Ra3 {[%clk 0:00:49]}  f5 {[%clk 0:01:10]} 35. Nf2 {[%clk 0:00:46]}  a6 {[%clk 0:01:02]} 36. Nd3 {[%clk 0:00:45]}  g5 {[%clk 0:00:58]} 37. Ra5 {[%clk 0:00:42]}  Rc8 {[%clk 0:00:47]} 38. Rb1 {[%clk 0:00:39]}  Re3 {[%clk 0:00:46]} 39. Rb7 {[%clk 0:00:35]}  Kf8 {[%clk 0:00:41]} 40. Nf2 {[%clk 0:00:31]}  Rc6 {[%clk 0:00:36]} 41. Kf1 {[%clk 0:00:30]}  Bd8 {[%clk 0:00:25]} 42. Rb8 {[%clk 0:00:24]}  Ke7 {[%clk 0:00:24]} 43. Rb7+ {[%clk 0:00:23]}  Kd6 {[%clk 0:00:22]} 44. Ra4 {[%clk 0:00:23]}  a5 {[%clk 0:00:19]} 45. Rb3 {[%clk 0:00:17]}  Rxb3 {[%clk 0:00:17]} 46. axb3 {[%clk 0:00:18]}  Rb6 {[%clk 0:00:17]} 47. Ra3 {[%clk 0:00:19]}  Rb4 {[%clk 0:00:17]} 48. Ke2 {[%clk 0:00:19]}  a4 {[%clk 0:00:17]} 49. Rxa4 {[%clk 0:00:19]}  Rxb3 {[%clk 0:00:17]} 50. Ra6+ {[%clk 0:00:19]}  Kd7 {[%clk 0:00:15]} 51. Rh6 {[%clk 0:00:19]}  Rb2+ {[%clk 0:00:14]} 52. Ke1 {[%clk 0:00:18]}  Bc7 {[%clk 0:00:14]} 53. Nd3 {[%clk 0:00:18]}  Bg3+ {[%clk 0:00:14]} 54. Kd1 {[%clk 0:00:17]}  Rxg2 {[%clk 0:00:14]} 55. Rxh5 {[%clk 0:00:18]}  Bd6 {[%clk 0:00:12]} 56. h4 {[%clk 0:00:17]}  gxh4 {[%clk 0:00:10]} 57. Rxh4 {[%clk 0:00:17]}  Ra2 {[%clk 0:00:10]} 58. Rh5 {[%clk 0:00:17]}  Ra3 {[%clk 0:00:09]} 59. Ke2 {[%clk 0:00:16]}  Ra2+ {[%clk 0:00:10]} 60. Kd1 {[%clk 0:00:16]}  Ra4 {[%clk 0:00:09]} 61. Ke2 {[%clk 0:00:16]}  Rxc4 {[%clk 0:00:10]} 62. Rxf5 {[%clk 0:00:15]}  Rc2+ {[%clk 0:00:10]} 63. Kd1 {[%clk 0:00:15]}  Rc3 {[%clk 0:00:11]} 64. Kd2 {[%clk 0:00:14]}  c4 {[%clk 0:00:11]} 65. Nc5+ {[%clk 0:00:13]}  Bxc5 {[%clk 0:00:10]} 66. Rxc5 {[%clk 0:00:12]}  Kd6 {[%clk 0:00:11]} 67. Rc8 {[%clk 0:00:11]}  Kd5 {[%clk 0:00:11]} 68. f4 {[%clk 0:00:10]}  Rh3 {[%clk 0:00:10]} 69. Rd8+ {[%clk 0:00:09]}  Ke4 {[%clk 0:00:11]} 70. Rc8 {[%clk 0:00:08]}  Rh2+ {[%clk 0:00:11]} 71. Kc1 {[%clk 0:00:08]}  Kd3 {[%clk 0:00:11]} 72. Rg8 {[%clk 0:00:04]}  Rh1+ {[%clk 0:00:11]} 73. Kb2 {[%clk 0:00:04]}  c3+ {[%clk 0:00:11]} 74. Kb3 {[%clk 0:00:04]}  Rb1+ {[%clk 0:00:11]} 75. Ka2 {[%clk 0:00:04]}  c2 {[%clk 0:00:12]} 76. Rg3+ {[%clk 0:00:04]}  Kc4 {[%clk 0:00:12]} 77. f5 {[%clk 0:00:03]}  c1=Q {[%clk 0:00:12]} 78. Rc3+ {[%clk 0:00:02]}  dxc3 {[%clk 0:00:11]} 0-1


[Site "https://www.chess.com"]

[Event "Titled Tuesday Blitz December 06 Early 2022"]
[White "Sjugirov, Sanan"]
[Black "Harikrishna, Pentala"]
[WhiteFideId "4189302"]
[BlackFideId "5007003"]
[WhiteElo "2613"]
[BlackElo "2617"]
[Result "1-0"]
[Round "06"]
[TimeControl "180+1"]
[Date "2022.12.06"]
[WhiteClock "0:00:10"]
[BlackClock "0:00:03"]

1. e4 {[%clk 0:03:00]}  c5 {[%clk 0:02:59]} 2. Nf3 {[%clk 0:03:01]}  e6 {[%clk 0:03:00]} 3. d4 {[%clk 0:03:00]}  cxd4 {[%clk 0:03:00]} 4. Nxd4 {[%clk 0:03:01]}  Nc6 {[%clk 0:03:01]} 5. Nc3 {[%clk 0:03:01]}  Qc7 {[%clk 0:03:01]} 6. Be3 {[%clk 0:02:47]}  a6 {[%clk 0:03:01]} 7. a3 {[%clk 0:02:37]}  b5 {[%clk 0:03:00]} 8. Nxc6 {[%clk 0:02:33]}  Qxc6 {[%clk 0:03:00]} 9. Be2 {[%clk 0:02:31]}  Bb7 {[%clk 0:03:01]} 10. O-O {[%clk 0:02:30]}  Nf6 {[%clk 0:02:55]} 11. Bf3 {[%clk 0:02:23]}  e5 {[%clk 0:02:41]} 12. Nd5 {[%clk 0:02:01]}  Bc5 {[%clk 0:01:50]} 13. Nxf6+ {[%clk 0:01:50]}  gxf6 {[%clk 0:01:51]} 14. Bxc5 {[%clk 0:01:50]}  Qxc5 {[%clk 0:01:48]} 15. Qd3 {[%clk 0:01:45]}  Bc6 {[%clk 0:01:40]} 16. Rfd1 {[%clk 0:01:39]}  h5 {[%clk 0:01:36]} 17. h4 {[%clk 0:01:35]}  Rd8 {[%clk 0:01:28]} 18. c3 {[%clk 0:01:32]}  d6 {[%clk 0:01:20]} 19. Rd2 {[%clk 0:01:20]}  Qc4 {[%clk 0:01:18]} 20. Qe3 {[%clk 0:01:16]}  Qc5 {[%clk 0:00:55]} 21. Qe2 {[%clk 0:01:16]}  Qc4 {[%clk 0:00:52]} 22. Qe3 {[%clk 0:01:09]}  Qc5 {[%clk 0:00:52]} 23. Qxc5 {[%clk 0:00:54]}  dxc5 {[%clk 0:00:52]} 24. Rad1 {[%clk 0:00:55]}  Rxd2 {[%clk 0:00:50]} 25. Rxd2 {[%clk 0:00:56]}  Ke7 {[%clk 0:00:51]} 26. Kf1 {[%clk 0:00:56]}  c4 {[%clk 0:00:43]} 27. Ke2 {[%clk 0:00:56]}  Bd7 {[%clk 0:00:39]} 28. Ke3 {[%clk 0:00:52]}  Be6 {[%clk 0:00:38]} 29. g3 {[%clk 0:00:52]}  a5 {[%clk 0:00:36]} 30. Be2 {[%clk 0:00:50]}  f5 {[%clk 0:00:34]} 31. exf5 {[%clk 0:00:50]}  Bxf5 {[%clk 0:00:35]} 32. Rd5 {[%clk 0:00:50]}  b4 {[%clk 0:00:30]} 33. Rxa5 {[%clk 0:00:31]}  bxc3 {[%clk 0:00:28]} 34. bxc3 {[%clk 0:00:32]}  Kf6 {[%clk 0:00:25]} 35. Ra6+ {[%clk 0:00:32]}  Kg7 {[%clk 0:00:24]} 36. Bxc4 {[%clk 0:00:27]}  Rc8 {[%clk 0:00:23]} 37. Ra4 {[%clk 0:00:28]}  Bd7 {[%clk 0:00:18]} 38. Rb4 {[%clk 0:00:28]}  Ra8 {[%clk 0:00:18]} 39. Rb7 {[%clk 0:00:25]}  Be8 {[%clk 0:00:19]} 40. Rb3 {[%clk 0:00:22]}  f5 {[%clk 0:00:16]} 41. Bd5 {[%clk 0:00:16]}  Ra4 {[%clk 0:00:13]} 42. c4 {[%clk 0:00:16]}  Kf6 {[%clk 0:00:13]} 43. f4 {[%clk 0:00:16]}  e4 {[%clk 0:00:13]} 44. Kd4 {[%clk 0:00:16]}  Ke7 {[%clk 0:00:13]} 45. Ke5 {[%clk 0:00:15]}  Bd7 {[%clk 0:00:14]} 46. c5 {[%clk 0:00:15]}  Ra5 {[%clk 0:00:14]} 47. Rc3 {[%clk 0:00:15]}  Kd8 {[%clk 0:00:11]} 48. Bf7 {[%clk 0:00:14]}  Bc6 {[%clk 0:00:11]} 49. Bxh5 {[%clk 0:00:14]}  e3 {[%clk 0:00:11]} 50. Kxf5 {[%clk 0:00:12]}  Be8 {[%clk 0:00:02]} 51. Bxe8 {[%clk 0:00:10]}  e2 {[%clk 0:00:02]} 52. Re3 {[%clk 0:00:11]}  Rxc5+ {[%clk 0:00:03]} 53. Kg4 {[%clk 0:00:10]} 1-0


[Site "https://www.chess.com"]

[Event "Titled Tuesday Blitz December 06 Early 2022"]
[White "Stijve, Theo"]
[Black "Tay, Junior"]
[WhiteFideId "1331132"]
[BlackFideId "5800439"]
[WhiteElo "2256"]
[BlackElo "2216"]
[Result "1-0"]
[Round "06"]
[TimeControl "180+1"]
[Date "2022.12.07"]
[WhiteClock "0:00:35"]
[BlackClock "0:00:27"]

1. e4 {[%clk 0:02:48]}  c5 {[%clk 0:02:58]} 2. a3 {[%clk 0:02:46]}  d5 {[%clk 0:02:58]} 3. exd5 {[%clk 0:02:44]}  Nf6 {[%clk 0:02:58]} 4. Bb5+ {[%clk 0:02:41]}  Bd7 {[%clk 0:02:58]} 5. Bxd7+ {[%clk 0:02:31]}  Qxd7 {[%clk 0:02:57]} 6. c4 {[%clk 0:02:31]}  e6 {[%clk 0:02:57]} 7. dxe6 {[%clk 0:02:30]}  fxe6 {[%clk 0:02:57]} 8. Nf3 {[%clk 0:02:29]}  Bd6 {[%clk 0:02:58]} 9. Nc3 {[%clk 0:02:26]}  O-O {[%clk 0:02:58]} 10. d3 {[%clk 0:02:25]}  Nc6 {[%clk 0:02:58]} 11. O-O {[%clk 0:02:21]}  Rad8 {[%clk 0:02:58]} 12. Bg5 {[%clk 0:02:09]}  Bb8 {[%clk 0:02:50]} 13. Ne4 {[%clk 0:02:03]}  Nxe4 {[%clk 0:02:38]} 14. Bxd8 {[%clk 0:01:57]}  Rxf3 {[%clk 0:02:00]} 15. Bh4 {[%clk 0:01:12]}  Rxd3 {[%clk 0:01:53]} 16. Qe2 {[%clk 0:01:12]}  Nd2 {[%clk 0:01:37]} 17. Rad1 {[%clk 0:01:02]}  Nd4 {[%clk 0:01:38]} 18. Qxd3 {[%clk 0:00:59]}  N4f3+ {[%clk 0:01:09]} 19. Qxf3 {[%clk 0:00:59]}  Nxf3+ {[%clk 0:01:08]} 20. gxf3 {[%clk 0:00:59]}  Qc7 {[%clk 0:00:57]} 21. Bg3 {[%clk 0:00:54]}  Qc8 {[%clk 0:00:56]} 22. Rfe1 {[%clk 0:00:52]}  h6 {[%clk 0:00:48]} 23. Kg2 {[%clk 0:00:50]}  Bxg3 {[%clk 0:00:46]} 24. hxg3 {[%clk 0:00:50]}  Qc6 {[%clk 0:00:46]} 25. Re5 {[%clk 0:00:47]}  b6 {[%clk 0:00:44]} 26. Rde1 {[%clk 0:00:46]}  Qa4 {[%clk 0:00:45]} 27. Rxe6 {[%clk 0:00:41]}  Qxc4 {[%clk 0:00:45]} 28. Re7 {[%clk 0:00:41]}  Qc2 {[%clk 0:00:41]} 29. R1e2 {[%clk 0:00:40]}  Qc4 {[%clk 0:00:39]} 30. Rd2 {[%clk 0:00:37]}  a5 {[%clk 0:00:35]} 31. Rdd7 {[%clk 0:00:37]}  b5 {[%clk 0:00:28]} 32. Rxg7+ {[%clk 0:00:37]}  Kf8 {[%clk 0:00:28]} 33. Rh7 {[%clk 0:00:36]}  Kg8 {[%clk 0:00:27]} 34. Rdg7+ {[%clk 0:00:34]}  Kf8 {[%clk 0:00:27]} 35. Ra7 {[%clk 0:00:35]}  Kg8 {[%clk 0:00:27]} 36. Rhc7 {[%clk 0:00:35]} 1-0


[Site "https://www.chess.com"]